fUSD/lending_fUSD_20240515
["ID","MTS","AMOUNT","RATE_DAILY","PERIOD"]
[327084348,1715800239303,-500.0,0.00012496,2]
[327084349,1715800239314,-500.0,0.00012496,2]
[327084350,1715800239325,-500.0,0.00012496,2]
[327084351,1715800239336,-221.11576217,0.00012496,2]
[327084352,1715800239351,-278.88423783,0.00012496,2]
[327084353,1715800239362,-500.0,0.00012496,2]
[327084354,1715800239374,-318.90531817,0.00012496,2]
[327084355,1715800239387,-181.09468183,0.00012496,2]
[327084356,1715800239398,-500.0,0.00012496,2]
[327084357,1715800239409,-315.57383293,0.00012496,2]
[327084358,1715800239420,-500.0,0.00012496,2]
[327084359,1715800239430,-500.0,0.00012496,2]
[327084360,1715800239441,-500.0,0.00012496,2]
[327084361,1715800239451,-500.0,0.00012496,2]
[327084362,1715800239462,-585.31,0.00012496,2]
[327084363,1715800239473,-500.0,0.00012496,2]
[327084364,1715800239485,-500.0,0.00012496,2]
[327084365,1715800239496,-500.0,0.00012496,2]
[327084366,1715800239507,-265.84118552,0.00012497,2]
[327084367,1715800239519,-1025.34346523,0.00012497,2]
[327084368,1715800239530,-215.66039299,0.00012497,2]
[327084369,1715800239544,-193.3242517,0.00012497,2]
[327084370,1715800239555,-238.14069985,0.00012497,2]
[327084371,1715800239566,-405.3612315,0.00012497,2]
[327084372,1715800239578,-155.1587554,0.00012497,2]
[327084373,1715800239590,-4271.31667855,0.00012497,2]
[327084374,1715800239601,-4171.335319,0.00012497,2]
[327084375,1715800239613,-15067.93924096,0.00012497,2]
[327084376,1715800239629,-830.53999099,0.00012497,2]
[327084377,1715800239642,-5243.23166968,0.00012497,2]
[327084378,1715800239656,-5638.59697852,0.00012497,2]
[327084379,1715800239670,-500.0,0.00012497,2]
[327084380,1715800239685,-9829.1716183,0.00012497,2]
[327084381,1715800239720,-500.0,0.00012496,2]
[327084382,1715800239731,-4420.40179236,0.00012497,2]
[327084383,1715800239744,-444.11719502,0.00012497,2]
[327084384,1715800239757,-6185.98287592,0.00012497,2]
[327084385,1715800239770,-1126.67947525,0.00012497,2]
[327084388,1715800239783,-16169.82675154,0.00012497,2]
[327084389,1715800239797,-481901.79369391,0.00012497,2]
[327084390,1715800239809,-400.11887596,0.00012497,2]
[327084391,1715800239820,-1377.29078847,0.00012497,2]
[327084392,1715800239830,-366.56331924,0.00012497,2]
[327084393,1715800239844,-155.0,0.00012497,2]
[327084394,1715800239855,-345.95337229,0.00012497,2]
[327084395,1715800239866,-173.43554886,0.00012497,2]
[327084396,1715800239877,-1476.65316719,0.00012498,2]
[327084397,1715800239889,-4881.38756574,0.00012498,2]
[327084398,1715800239901,-302.95044686,0.00012498,2]
[327084399,1715800239912,-301.40994899,0.00012498,2]
[327084400,1715800239923,-516.01771826,0.00012498,2]
[327084401,1715800239934,-520.76,0.00012498,2]
[327084402,1715800239945,-529.25464863,0.00012498,2]
[327084403,1715800239956,-504.45538581,0.00012498,2]
[327084404,1715800239967,-500.0,0.00012498,2]
[327084405,1715800239978,-500.0,0.00012498,2]
[327084406,1715800239990,-500.0,0.00012498,2]
[327084407,1715800240002,-322.08928543,0.00012498,2]
[327084408,1715800240014,-500.0,0.00012498,2]
[327084409,1715800240026,-500.0,0.00012498,2]
[327084410,1715800240038,-500.0,0.00012498,2]
[327084411,1715800240050,-500.0,0.00012498,2]
[327084412,1715800240061,-500.0,0.00012498,2]
[327084413,1715800240072,-500.0,0.00012498,2]
[327084414,1715800240083,-282.21,0.00012498,2]
[327084415,1715800240101,-500.0,0.00012498,2]
[327084416,1715800240111,-500.0,0.00012498,2]
[327084417,1715800240123,-500.0,0.00012498,2]
[327084418,1715800240135,-630.06,0.00012498,2]
[327084419,1715800240146,-500.0,0.00012498,2]
[327084420,1715800240157,-500.0,0.00012498,2]
[327084421,1715800240168,-242.05,0.00012498,2]
[327084422,1715800240179,-500.0,0.00012498,2]
[327084423,1715800240192,-500.0,0.00012498,2]
[327084424,1715800240204,-500.0,0.00012498,2]
[327084425,1715800240216,-500.0,0.00012498,2]
[327084426,1715800240227,-500.0,0.00012498,2]
[327084427,1715800240238,-464.44,0.00012498,2]
[327084428,1715800240249,-500.0,0.00012498,2]
[327084429,1715800240260,-500.0,0.00012498,2]
[327084430,1715800240271,-500.0,0.00012498,2]
[327084431,1715800240281,-500.0,0.00012498,2]
[327084432,1715800240293,-500.0,0.00012498,2]
[327084433,1715800240304,-500.0,0.00012498,2]
[327084434,1715800240316,-500.0,0.00012498,2]
[327084435,1715800240327,-500.0,0.00012498,2]
[327084436,1715800240339,-617.34,0.00012498,2]
[327084437,1715800240351,-424.59,0.00012498,2]
[327084438,1715800240362,-500.0,0.00012498,2]
[327084439,1715800240373,-500.0,0.00012498,2]
[327084440,1715800240384,-221.87,0.00012498,2]
[327084441,1715800240395,-500.0,0.00012498,2]
[327084442,1715800240407,-500.0,0.00012498,2]
[327084443,1715800240418,-500.0,0.00012498,2]
[327084445,1715800240429,-395.3,0.00012498,2]
[327084447,1715800240441,-500.0,0.00012498,2]
[327084449,1715800240456,-528.6242532,0.00012499,2]
[327084451,1715800240468,-436.39738179,0.00012499,2]
[327084453,1715800240480,-185.14067272,0.00012499,2]
[327084455,1715800240490,-1515846.59035951,0.00012499,2]
[327084457,1715800240504,-295436.24224291,0.00012499,2]
[327084459,1715800240514,-225699.33476538,0.000125,2]
[327084461,1715800240526,-630.15,0.000125,2]
[327084462,1715800240950,-9697.534,0.000125,2]
[327084463,1715800240962,-1628.52866842,0.000125,2]
[327084464,1715800240975,-14263.00662656,0.000125,2]
[327084465,1715800240987,-775.44461026,0.000125,2]
[327084466,1715800240999,-790.78038868,0.000125,2]
[327084467,1715800241010,-1729.55783652,0.000125,2]
[327084468,1715800241022,-1151.7587563,0.000125,2]
[327084469,1715800241034,-785.92464769,0.000125,2]
[327084470,1715800241045,-669.42707453,0.000125,2]
[327084471,1715800241056,-117574.74565858,0.000125,2]
[327084472,1715800241068,-223617.26743093,0.000125,2]
[327084473,1715800241078,-41128.8962565,0.000125,2]
[327084474,1715800241090,-5111.28122006,0.000125,2]
[327084475,1715800241103,-685.64557098,0.000125,2]
[327084476,1715800241117,-7214.50036956,0.000125,2]
[327084477,1715800241128,-5115.537408,0.000125,2]
[327084478,1715800241140,-9500.929818,0.000125,2]
[327084479,1715800241153,-655.82000289,0.000125,2]
[327084480,1715800241164,-578.941023,0.000125,2]
[327084481,1715800241176,-867.8702897,0.000125,2]
[327084482,1715800241189,-8043.10952266,0.000125,2]
[327084483,1715800241202,-7247.88125866,0.000125,2]
[327084484,1715800241214,-8814.86234048,0.000125,2]
[327084485,1715800241225,-11941.0255086,0.000125,2]
[327084486,1715800241237,-5085.22599903,0.000125,2]
[327084487,1715800241247,-7040.3643225,0.000125,2]
[327084488,1715800241258,-3314.4156,0.000125,2]
[327084489,1715800241270,-39813.36937123,0.000125,2]
[327084490,1715800241281,-580.2362517,0.000125,2]
[327084491,1715800241308,-299.45,0.00012498,2]
[327084492,1715800241318,-1355.08650654,0.000125,2]
[327084493,1715800241352,-428.99016571,0.00012496,2]
[327084494,1715800241361,-1326.75807523,0.000125,2]
[327084495,1715800241372,-656.33472394,0.000125,2]
[327084496,1715800241403,-347652.70973047,0.000125,2]
[327084497,1715800241415,-185293.51074515,0.000125,2]
[327084498,1715800241426,-366.976,0.000125,2]
[327084499,1715800241437,-1198.68,0.000125,2]
[327084500,1715800241448,-2230.79767685,0.000125,2]
[327084501,1715800241459,-3245.01667912,0.000125,2]
[327084502,1715800241470,-371.73,0.000125,2]
[327084503,1715800241651,-813.78799327,0.000125,2]
[327084504,1715800241664,-307.0699998,0.000125,2]
[327084505,1715800241675,-4926.73595008,0.000125,2]
[327084506,1715800241686,-806.9141499,0.000125,2]
[327084507,1715800241698,-857.69234347,0.000125,2]
[327084508,1715800241709,-2101.47463209,0.000125,2]
[327084514,1715800243155,-155.06471558,0.00012495,2]
[327084519,1715800243164,-500.0,0.00012498,2]
[327084522,1715800243175,-500.0,0.00012498,2]
[327084524,1715800243184,-2129.74178442,0.000125,2]
[327084529,1715800243212,-909062.1561486,0.000125,2]
[327084531,1715800243223,-1905.97099834,0.000125,2]
[327084545,1715800243571,-500.0,0.00012496,2]
[327084547,1715800243579,-500.0,0.00012498,2]
[327084549,1715800243590,-78.79243425,0.00012498,2]
[327084551,1715800243600,-335.26756575,0.00012498,2]
[327084553,1715800243609,-11.72994727,0.000125,2]
[327084556,1715800243619,-132443.55175446,0.000125,2]
[327084557,1715800243627,-106720.97942791,0.000125,2]
[327084558,1715800243636,-252.85452482,0.000125,2]
[327084559,1715800243644,-1000.0,0.000125,2]
[327084560,1715800243652,-2999.99999969,0.000125,2]
[327084561,1715800243660,-155.0,0.000125,2]
[327084562,1715800243669,-251.0,0.000125,2]
[327084563,1715800243679,-366.0,0.000125,2]
[327084564,1715800243688,-151.0,0.000125,2]
[327084565,1715800243698,-151.0,0.000125,2]
[327084566,1715800243707,-151.0,0.000125,2]
[327084567,1715800243717,-151.0,0.000125,2]
[327084568,1715800243727,-151.0,0.000125,2]
[327084569,1715800243736,-151.0,0.000125,2]
[327084570,1715800243745,-151.0,0.000125,2]
[327084571,1715800243755,-151.0,0.000125,2]
[327084572,1715800243764,-151.0,0.000125,2]
[327084573,1715800243773,-167.738304,0.000125,2]
[327084574,1715800243783,-151.0,0.000125,2]
[327084575,1715800243792,-151.0,0.000125,2]
[327084576,1715800243801,-151.0,0.000125,2]
[327084577,1715800243811,-151.0,0.000125,2]
[327084578,1715800243820,-151.0,0.000125,2]
[327084579,1715800243830,-161.495407,0.000125,2]
[327084580,1715800243840,-151.0,0.000125,2]
[327084581,1715800243850,-162.263011,0.000125,2]
[327084582,1715800243859,-151.0,0.000125,2]
[327084583,1715800243869,-159.181262,0.000125,2]
[327084584,1715800243878,-180.432519,0.000125,2]
[327084585,1715800243887,-151.0,0.000125,2]
[327084586,1715800243896,-151.0,0.000125,2]
[327084587,1715800243906,-151.0,0.000125,2]
[327084588,1715800243915,-212.546306,0.000125,2]
[327084589,1715800243925,-3000.0,0.000125,2]
[327084590,1715800243934,-151.0,0.000125,2]
[327084591,1715800243944,-254.790144,0.000125,2]
[327084592,1715800243953,-666.6666667,0.00012502,2]
[327084593,1715800243962,-597.74383489,0.0001251,2]
[327084597,1715800245723,-782.26025222,0.00012495,2]
[327084598,1715800245733,-88.48184409,0.00012495,2]
[327084599,1715800245745,-158.27817611,0.00012495,2]
[327084600,1715800245755,-500.0,0.00012496,2]
[327084601,1715800245765,-500.0,0.00012496,2]
[327084602,1715800245774,-500.0,0.00012498,2]
[327084603,1715800245784,-460.58,0.00012498,2]
[327084604,1715800245794,-500.0,0.00012498,2]
[327084605,1715800245803,-500.0,0.00012498,2]
[327084606,1715800245813,-500.0,0.00012498,2]
[327084607,1715800245823,-1907.60593871,0.0001251,2]
[327084608,1715800245832,-151.9870703,0.0001251,2]
[327084609,1715800245842,-300.0,0.0001251,2]
[327084610,1715800245851,-2100.0,0.0001251,2]
[327084611,1715800245861,-13179.2116166,0.00012519,2]
[327084612,1715800245871,-4710.8210117,0.00012536,2]
[327084613,1715800245880,-203.027697,0.00012565,2]
[327084614,1715800245890,-834.513189,0.00012565,2]
[327084615,1715800245900,-242.958798,0.00012565,2]
[327084616,1715800245909,-1247.171485,0.00012565,2]
[327084617,1715800245919,-169.804983,0.00012565,2]
[327084618,1715800245929,-50363.45565952,0.0001258,2]
[327084619,1715800245940,-54059.56197863,0.0001258,2]
[327084620,1715800245950,-697.16713849,0.0001258,2]
[327084621,1715800245960,-18567.65007305,0.0001258,2]
[327084622,1715800245969,-4710.8210117,0.00012581,2]
[327084623,1715800245979,-4710.8210117,0.00012627,2]
[327084624,1715800245988,-157.99910777,0.00012643,2]
[327084625,1715800245998,-11825.99505038,0.0001265,2]
[327084626,1715800246007,-500.0,0.00012665,2]
[327084627,1715800246016,-4710.8210117,0.00012672,2]
[327084628,1715800246026,-500.0,0.00012673,2]
[327084629,1715800246036,-500.0,0.00012682,2]
[327084630,1715800246045,-500.0,0.00012691,2]
[327084631,1715800246054,-500.0,0.000127,2]
[327084632,1715800246063,-1000.0,0.000127,2]
[327084633,1715800246072,-1000.0,0.000127,2]
[327084634,1715800246081,-500.0,0.00012709,2]
[327084635,1715800246093,-500.0,0.00012717,2]
[327084636,1715800246103,-4710.8210117,0.00012718,2]
[327084637,1715800246112,-500.0,0.00012726,2]
[327084638,1715800246122,-500.0,0.00012735,2]
[327084639,1715800246134,-500.0,0.00012744,2]
[327084640,1715800246143,-12646.59177514,0.0001275,2]
[327084641,1715800246152,-500.0,0.00012753,2]
[327084642,1715800246162,-10587.0454444,0.00012754,2]
[327084643,1715800246173,-666.6666667,0.00012754,2]
[327084644,1715800246182,-500.0,0.00012761,2]
[327084645,1715800246191,-5000.0,0.00012763,2]
[327084646,1715800246201,-4710.8210117,0.00012763,2]
[327084647,1715800246212,-1015.08,0.00012768,3]
[327084648,1715800246222,-500.0,0.0001277,2]
[327084649,1715800246231,-500.0,0.00012779,2]
[327084650,1715800246240,-2505.3497736,0.00012782,2]
[327084651,1715800246249,-151.9870703,0.00012782,2]
[327084652,1715800246259,-500.0,0.00012788,2]
[327084653,1715800246268,-1085.6,0.0001279,3]
[327084654,1715800246278,-500.0,0.00012797,2]
[327084655,1715800246289,-5000.0,0.000128,2]
[327084656,1715800246299,-1233.6,0.000128,3]
[327084657,1715800246308,-1158.6,0.000128,3]
[327084658,1715800246317,-500.0,0.00012805,2]
[327084659,1715800246327,-500.0,0.00012805,2]
[327084660,1715800246336,-4710.8210117,0.00012809,2]
[327084661,1715800246347,-500.0,0.00012814,2]
[327084662,1715800246356,-500.0,0.00012814,2]
[327084663,1715800246365,-500.0,0.00012823,2]
[327084664,1715800246375,-500.0,0.00012823,2]
[327084665,1715800246384,-151.01,0.00012829,2]
[327084666,1715800246393,-500.0,0.00012832,2]
[327084667,1715800246403,-500.0,0.00012832,2]
[327084668,1715800246413,-5042.5046616,0.00012835,2]
[327084669,1715800246422,-5000.0,0.00012835,2]
[327084670,1715800246431,-5000.0,0.00012835,2]
[327084671,1715800246440,-5000.0,0.00012835,2]
[327084672,1715800246450,-5000.0,0.00012835,2]
[327084673,1715800246460,-7308.41987252,0.00012839,2]
[327084674,1715800246469,-5000.0,0.00012839,2]
[327084675,1715800246478,-5000.0,0.00012839,2]
[327084676,1715800246487,-5000.0,0.00012839,2]
[327084677,1715800246496,-5000.0,0.00012839,2]
[327084678,1715800246506,-500.0,0.00012841,2]
[327084679,1715800246515,-500.0,0.00012841,2]
[327084680,1715800246524,-500.0,0.00012849,2]
[327084681,1715800246534,-500.0,0.00012849,2]
[327084682,1715800246544,-1353.5,0.0001285,3]
[327084683,1715800246553,-4710.8210117,0.00012854,2]
[327084684,1715800246563,-500.0,0.00012858,2]
[327084685,1715800246572,-500.0,0.00012858,2]
[327084686,1715800246582,-500.0,0.00012867,2]
[327084688,1715800246595,-500.0,0.00012867,2]
[327084689,1715800246606,-11611.8052751,0.0001287,2]
[327084690,1715800246615,-500.0,0.00012876,2]
[327084691,1715800246625,-500.0,0.00012876,2]
[327084692,1715800246634,-500.0,0.00012876,2]
[327084693,1715800246644,-199.81477,0.00012877,2]
[327084694,1715800246654,-199.81477,0.00012877,2]
[327084695,1715800246663,-500.0,0.00012885,2]
[327084696,1715800246672,-500.0,0.00012885,2]
[327084697,1715800246682,-500.0,0.00012885,2]
[327084698,1715800246691,-2505.3497736,0.00012891,2]
[327084699,1715800246700,-151.9870703,0.00012891,2]
[327084700,1715800246709,-666.6666667,0.00012891,2]
[327084701,1715800246719,-500.0,0.00012893,2]
[327084702,1715800246728,-500.0,0.00012893,2]
[327084703,1715800246737,-500.0,0.00012893,2]
[327084704,1715800246747,-2227.32183021,0.000129,2]
[327084705,1715800246756,-3703.59216757,0.000129,2]
[327084706,1715800246766,-449.53723821,0.000129,2]
[327084707,1715800246776,-500.0,0.000129,2]
[327084708,1715800246785,-155.74380215,0.000129,2]
[327084709,1715800246794,-4710.8210117,0.000129,2]
[327084710,1715800246804,-157.99910777,0.000129,2]
[327084711,1715800246814,-11825.99505038,0.000129,2]
[327084712,1715800246824,-17542.35658983,0.000129,2]
[327084713,1715800246834,-17542.35658982,0.000129,2]
[327084714,1715800246844,-8789.42570067,0.000129,2]
[327084715,1715800246912,-162.46980569,0.00012497,2]
[327084716,1715800246922,-500.0,0.00012498,2]
[327084717,1715800246931,-747.97870752,0.000129,2]
[327084718,1715800246942,-505.19360001,0.000129,2]
[327084719,1715800246953,-1506.5,0.000129,2]
[327084720,1715800246966,-5993.25858162,0.000129,2]
[327084721,1715800246976,-17542.35658982,0.000129,2]
[327084722,1715800246985,-9147.88486208,0.000129,2]
[327084723,1715800246998,-2125.61706367,0.000129,2]
[327084724,1715800247009,-4483.1944821,0.000129,2]
[327084725,1715800247192,-309.452495,0.00012497,2]
[327084726,1715800247203,-500.0,0.00012498,2]
[327084727,1715800247214,-1785.66018197,0.000129,2]
[327084728,1715800247223,-17542.35658982,0.000129,2]
[327084729,1715800247232,-17542.35658982,0.000129,2]
[327084730,1715800247242,-500.0,0.00012902,2]
[327084731,1715800247251,-500.0,0.00012902,2]
[327084732,1715800247260,-500.0,0.00012902,2]
[327084733,1715800247270,-500.0,0.00012902,2]
[327084734,1715800247280,-500.0,0.00012911,2]
[327084735,1715800247289,-500.0,0.00012911,2]
[327084736,1715800247298,-500.0,0.00012911,2]
[327084737,1715800247308,-500.0,0.00012911,2]
[327084738,1715800247317,-500.0,0.0001292,2]
[327084739,1715800247327,-500.0,0.0001292,2]
[327084740,1715800247336,-500.0,0.0001292,2]
[327084741,1715800247348,-500.0,0.0001292,2]
[327084742,1715800247359,-500.0,0.0001292,2]
[327084743,1715800247376,-500.0,0.00012929,2]
[327084744,1715800247385,-500.0,0.00012929,2]
[327084745,1715800247395,-500.0,0.00012929,2]
[327084746,1715800247404,-500.0,0.00012929,2]
[327084747,1715800247413,-500.0,0.00012937,2]
[327084748,1715800247422,-500.0,0.00012937,2]
[327084749,1715800247431,-500.0,0.00012937,2]
[327084750,1715800247441,-500.0,0.00012937,2]
[327084751,1715800247452,-500.0,0.0001294,2]
[327084752,1715800247461,-500.0,0.00012946,2]
[327084753,1715800247470,-500.0,0.00012946,2]
[327084754,1715800247480,-500.0,0.00012946,2]
[327084755,1715800247490,-500.0,0.00012946,2]
[327084756,1715800247500,-500.0,0.00012955,2]
[327084757,1715800247510,-500.0,0.00012955,2]
[327084758,1715800247519,-500.0,0.00012955,2]
[327084759,1715800247529,-500.0,0.00012955,2]
[327084760,1715800247538,-500.0,0.0001296,2]
[327084761,1715800247548,-500.0,0.00012964,2]
[327084762,1715800247557,-500.0,0.00012964,2]
[327084763,1715800247567,-500.0,0.00012964,2]
[327084764,1715800247576,-500.0,0.00012964,2]
[327084765,1715800247586,-7994.8792722,0.00012972,2]
[327084766,1715800247597,-500.0,0.00012973,2]
[327084767,1715800247608,-500.0,0.00012973,2]
[327084768,1715800247621,-500.0,0.00012973,2]
[327084769,1715800247630,-500.0,0.00012973,2]
[327084770,1715800247639,-500.0,0.0001298,2]
[327084771,1715800247648,-151.01,0.0001298,2]
[327084772,1715800247660,-151.01,0.0001298,2]
[327084773,1715800247668,-5402.7131,0.00012981,2]
[327084774,1715800247678,-2810.5469278,0.00012981,2]
[327084775,1715800247689,-218.3807556,0.00012981,2]
[327084776,1715800247700,-2505.3497736,0.00012981,2]
[327084777,1715800247709,-2505.3497736,0.00012981,2]
[327084778,1715800247720,-2505.3497736,0.00012981,2]
[327084779,1715800247729,-151.9870703,0.00012981,2]
[327084780,1715800247739,-151.9870703,0.00012981,2]
[327084781,1715800247749,-151.9870703,0.00012981,2]
[327084782,1715800247758,-666.6666667,0.00012981,2]
[327084783,1715800247768,-666.6666667,0.00012981,2]
[327084784,1715800247778,-666.6666667,0.00012981,2]
[327084785,1715800247789,-500.0,0.00012981,2]
[327084786,1715800247798,-16000.0,0.00012981,2]
[327084787,1715800247808,-500.0,0.00012981,2]
[327084788,1715800247818,-500.0,0.00012981,2]
[327084789,1715800247828,-500.0,0.00012981,2]
[327084790,1715800247839,-151.0,0.00012984,2]
[327084791,1715800247849,-151.0,0.00012984,2]
[327084792,1715800247859,-151.0,0.00012984,2]
[327084793,1715800247868,-11057.43695381,0.00012984,2]
[327084794,1715800247884,-13891.56304619,0.00012984,2]
[327084795,1715800247895,-151.01,0.00012989,2]
[327084796,1715800247904,-151.01,0.00012989,2]
[327084797,1715800247915,-11113.23985703,0.0001299,2]
[327084798,1715800247924,-468344.58410369,0.0001299,2]
[327084799,1715800247959,-61.77760769,0.0001299,2]
[327084816,1715800592894,255.84,8.969e-05,2]
[327084826,1715800668679,155.0,8.969e-05,2]
[327084827,1715800681038,1377.29078847,8.969e-05,2]
[327084828,1715800684539,253.25382627,8.969e-05,2]
[327084829,1715800695039,1377.29078847,8.969e-05,2]
[327084830,1715800712466,547358.28128245,8.969e-05,2]
[327084831,1715800715040,1377.29078847,8.969e-05,2]
[327084832,1715800718429,173.43554886,8.969e-05,2]
[327084833,1715800726459,100984.818517,8.969e-05,2]
[327084871,1715801110410,243.04,8.219e-05,2]
[327084881,1715801168940,173.43554886,8.219e-05,2]
[327084885,1715801182943,173.43554886,8.219e-05,2]
[327084891,1715801199017,172.67268607,8.219e-05,2]
[327084893,1715801223051,27337.41621621,8.219e-05,2]
[327084894,1715801223079,20795.2267,8.219e-05,2]
[327084895,1715801223102,499225.63836624,8.219e-05,2]
[327084896,1715801225014,366.56331924,8.219e-05,2]
[327084898,1715801229601,1377.29078847,8.219e-05,2]
[327084900,1715801235018,468349.50410509,8.219e-05,2]
[327084902,1715801243190,366.56331924,8.219e-05,2]
[327084903,1715801245599,1377.29078847,8.219e-05,2]
[327084910,1715801261004,200.0,8.219e-05,2]
[327084911,1715801261026,134.8552656,8.219e-05,2]
[327084912,1715801267608,1037.68820999,8.219e-05,2]
[327084960,1715801431994,-326.57681908,8.616e-05,2]
[327084963,1715801432005,-143.25651706,8.617e-05,2]
[327084966,1715801432018,-266.27600067,8.617e-05,2]
[327084968,1715801432028,-508.92066319,8.618e-05,2]
[327084970,1715801432045,-562.4996314,8.618e-05,2]
[327084971,1715801432057,-3741.12234585,8.618e-05,2]
[327084972,1715801432070,-2700.46838617,8.618e-05,2]
[327084973,1715801432079,-882.99402716,8.618e-05,2]
[327084974,1715801432090,-1861.679812,8.619e-05,2]
[327084975,1715801432100,-266.19309669,8.662e-05,2]
[327084976,1715801432109,-155.0,8.663e-05,2]
[327084977,1715801432119,-330.29309441,8.664e-05,2]
[327084978,1715801432129,-150.0,8.665e-05,2]
[327084979,1715801432139,-150.0,8.665e-05,2]
[327084980,1715801432148,-193.10131139,8.959e-05,2]
[327084981,1715801432160,-550.47169238,8.959e-05,2]
[327084982,1715801432300,-1661.1859856,8.959e-05,2]
[327084985,1715801434026,-472.96010763,8.959e-05,2]
[327084989,1715801434041,-554.58560878,8.959e-05,2]
[327084992,1715801434053,-1076.33140367,8.959e-05,2]
[327084995,1715801434062,-210.0,9.531e-05,2]
[327084997,1715801434072,-499.99,9.67e-05,2]
[327085000,1715801434082,-1971.83382113,9.743e-05,2]
[327085003,1715801434092,-322.85550273,0.0001005,2]
[327085045,1715801438840,-155.0,8.615e-05,2]
[327085046,1715801438850,-168.84449727,0.0001005,2]
[327085047,1715801438860,-179.24,0.0001005,2]
[327085048,1715801438869,-250.0,0.00010095,2]
[327085049,1715801438879,-1915.15,0.00010104,2]
[327085050,1715801438889,-1392.39,0.00010255,2]
[327085051,1715801438899,-200.0,0.00010297,2]
[327085052,1715801438909,-2680.78,0.00010373,2]
[327085053,1715801438918,-158.11,0.00010411,2]
[327085054,1715801438931,-243.04,0.00010482,2]
[327085055,1715801438940,-179.09,0.00010803,2]
[327085056,1715801438950,-155.28,0.00011093,2]
[327085057,1715801438959,-155.28,0.00011101,2]
[327085058,1715801438969,-155.28,0.00011109,2]
[327085059,1715801438978,-155.28,0.00011117,2]
[327085060,1715801438988,-155.28,0.00011125,2]
[327085061,1715801438997,-155.28,0.00011132,2]
[327085062,1715801439007,-155.28,0.0001114,2]
[327085063,1715801439016,-155.28,0.00011148,2]
[327085064,1715801439026,-1000.0,0.00011271,2]
[327085065,1715801439036,-241.371794,0.00011456,2]
[327085066,1715801439048,-220.423941,0.00011456,2]
[327085067,1715801439058,-150.857373,0.00011456,2]
[327085068,1715801439069,-241.371794,0.00011599,2]
[327085069,1715801439079,-1000.0,0.000117,4]
[327085070,1715801439090,-241.371794,0.00011742,2]
[327085071,1715801439100,-500.0,0.0001178,2]
[327085072,1715801439111,-500.0,0.0001178,2]
[327085074,1715801439122,-500.0,0.0001178,2]
[327085075,1715801439132,-624.16,0.0001178,2]
[327085076,1715801439142,-500.0,0.0001178,2]
[327085077,1715801439152,-500.0,0.0001178,2]
[327085078,1715801439162,-500.0,0.0001178,2]
[327085079,1715801439173,-500.0,0.0001178,2]
[327085080,1715801439183,-579.55,0.0001178,2]
[327085081,1715801439193,-596.32,0.0001178,2]
[327085082,1715801439203,-500.0,0.0001178,2]
[327085083,1715801439214,-500.0,0.0001178,2]
[327085084,1715801439224,-500.0,0.0001178,2]
[327085085,1715801439234,-500.0,0.0001178,2]
[327085086,1715801439244,-510.97,0.0001178,2]
[327085087,1715801439255,-500.0,0.0001178,2]
[327085088,1715801439266,-500.0,0.0001178,2]
[327085089,1715801439276,-500.0,0.0001178,2]
[327085090,1715801439286,-500.0,0.0001178,2]
[327085091,1715801439298,-505.23959935,0.0001178,2]
[327085092,1715801439308,-500.0,0.0001178,2]
[327085093,1715801439319,-619.3,0.0001178,2]
[327085094,1715801439328,-500.0,0.0001178,2]
[327085095,1715801439339,-501.73139076,0.0001178,2]
[327085096,1715801439349,-515.34,0.0001178,2]